[Event "Early-Titled-Tuesday-Blitz-February-06-2024"]
[Site "Chess.com"]
[Date "2024.02.06"]
[Round "3"]
[White "JonasEilenberg"]
[Black "chezzgirl04"]
[Result "1-0"]
[WhiteElo "2533"]
[BlackElo "2187"]
[TimeControl "180+1"]
[EndTime "8:28:56 PST"]
[Termination "JonasEilenberg won on time"]

1. e4 {[%clk 0:03:00.9]} 1... e5 {[%clk 0:02:58.6]} 2. Nf3 {[%clk 0:03:01.2]}
2... Nc6 {[%clk 0:02:58.4]} 3. Bc4 {[%clk 0:03:01.9]} 3... Bc5 {[%clk
0:02:57.9]} 4. d3 {[%clk 0:03:02.1]} 4... Nf6 {[%clk 0:02:54.2]} 5. Bg5 {[%clk
0:02:58.1]} 5... O-O {[%clk 0:02:52.6]} 6. c3 {[%clk 0:02:57.7]} 6... h6 {[%clk
0:02:51.1]} 7. Bh4 {[%clk 0:02:57.6]} 7... Bb6 {[%clk 0:02:44.8]} 8. a4 {[%clk
0:02:57.2]} 8... a5 {[%clk 0:02:44]} 9. Nbd2 {[%clk 0:02:57.8]} 9... g5 {[%clk
0:02:15.9]} 10. Bg3 {[%clk 0:02:57.7]} 10... d5 {[%clk 0:02:15.7]} 11. exd5
{[%clk 0:02:55.3]} 11... Nxd5 {[%clk 0:02:15.9]} 12. O-O {[%clk 0:02:44.6]}
12... Nf4 {[%clk 0:02:15.8]} 13. Bxf4 {[%clk 0:02:44.7]} 13... exf4 {[%clk
0:02:15.2]} 14. d4 {[%clk 0:02:40.9]} 14... g4 {[%clk 0:02:11.2]} 15. Ne1 {[%clk
0:02:21.3]} 15... h5 {[%clk 0:01:59.3]} 16. Qc2 {[%clk 0:02:20.5]} 16... Qg5
{[%clk 0:01:54.8]} 17. Ne4 {[%clk 0:02:12.3]} 17... Qg7 {[%clk 0:01:54]} 18. Qd2
{[%clk 0:02:12.1]} 18... Be6 {[%clk 0:01:50.9]} 19. d5 {[%clk 0:02:05.6]} 19...
Ne5 {[%clk 0:01:50.3]} 20. Bb3 {[%clk 0:01:50.1]} 20... Nf3+ {[%clk 0:01:49.2]}
21. gxf3 {[%clk 0:01:49.5]} 21... g3 {[%clk 0:01:29.2]} 22. hxg3 {[%clk
0:01:32.9]} 22... fxg3 {[%clk 0:01:28.4]} 23. Qg5 {[%clk 0:01:29.8]} 23... gxf2+
{[%clk 0:01:22.9]} 24. Rxf2 {[%clk 0:01:30.7]} 24... Bxf2+ {[%clk 0:01:19.6]}
25. Kxf2 {[%clk 0:01:31.6]} 25... Qxg5 {[%clk 0:01:12.5]} 26. Nxg5 {[%clk
0:01:32.5]} 26... Bf5 {[%clk 0:01:13]} 27. Ng2 {[%clk 0:01:30.3]} 27... Rae8
{[%clk 0:01:08.3]} 28. Ne3 {[%clk 0:01:29.2]} 28... Bd3 {[%clk 0:01:04.7]} 29.
Rg1 {[%clk 0:01:28.3]} 29... Kh8 {[%clk 0:01:04.6]} 30. d6 {[%clk 0:01:19.7]}
30... cxd6 {[%clk 0:00:46.6]} 31. Nxf7+ {[%clk 0:01:19.6]} 31... Kh7 {[%clk
0:00:45]} 32. Ng5+ {[%clk 0:00:56.5]} 32... Kh6 {[%clk 0:00:43.5]} 33. Nf7+
{[%clk 0:00:47.6]} 33... Kh7 {[%clk 0:00:43.2]} 34. Nxd6 {[%clk 0:00:48.1]}
34... Re7 {[%clk 0:00:30.5]} 35. Rg5 {[%clk 0:00:27.1]} 35... Rf6 {[%clk
0:00:22.9]} 36. Nf7 {[%clk 0:00:20.6]} 36... Rfxf7 {[%clk 0:00:16.5]} 37. Bxf7
{[%clk 0:00:21.5]} 37... Rxf7 {[%clk 0:00:16.9]} 38. Rxh5+ {[%clk 0:00:22.1]}
38... Kg6 {[%clk 0:00:14.6]} 39. Rxa5 {[%clk 0:00:23]} 39... Be4 {[%clk
0:00:14.9]} 40. Nc4 {[%clk 0:00:15.8]} 40... Rxf3+ {[%clk 0:00:12.8]} 41. Ke2
{[%clk 0:00:16.4]} 41... Rh3 {[%clk 0:00:11.9]} 42. Ne5+ {[%clk 0:00:14.4]}
42... Kg7 {[%clk 0:00:10.9]} 43. Ng4 {[%clk 0:00:14.3]} 43... Rg3 {[%clk
0:00:09.7]} 44. Nf2 {[%clk 0:00:14.3]} 44... Bc6 {[%clk 0:00:06.8]} 45. Rc5
{[%clk 0:00:13.4]} 45... Kf8 {[%clk 0:00:05.7]} 46. a5 {[%clk 0:00:13.5]} 46...
Rg6 {[%clk 0:00:05.1]} 47. b4 {[%clk 0:00:13.7]} 47... Re6+ {[%clk 0:00:05.2]}
48. Kd2 {[%clk 0:00:13.2]} 48... Rd6+ {[%clk 0:00:05.3]} 49. Nd3 {[%clk
0:00:13.8]} 49... Be4 {[%clk 0:00:04.9]} 50. Rc8+ {[%clk 0:00:12.5]} 50... Kg7
{[%clk 0:00:04.1]} 51. Rc4 {[%clk 0:00:11.5]} 51... Bxd3 {[%clk 0:00:03.2]} 52.
Rc7+ {[%clk 0:00:09.1]} 52... Kg6 {[%clk 0:00:02.6]} 53. Ke3 {[%clk 0:00:10]}
53... Bf5 {[%clk 0:00:02.4]} 54. Rxb7 {[%clk 0:00:09.8]} 54... Rd3+ {[%clk
0:00:02.5]} 55. Kf4 {[%clk 0:00:10.4]} 55... Rxc3 {[%clk 0:00:02.2]} 56. Rb6+
{[%clk 0:00:11]} 56... Kg7 {[%clk 0:00:01.9]} 57. Kxf5 {[%clk 0:00:11.5]} 1-0

[Event "Early-Titled-Tuesday-Blitz-February-06-2024"]
[Site "Chess.com"]
[Date "2024.02.06"]
[Round "3"]
[White "Alen_Yeremyann"]
[Black "ChristopherYoo"]
[Result "0-1"]
[WhiteElo "2724"]
[BlackElo "2971"]
[TimeControl "180+1"]
[EndTime "8:28:57 PST"]
[Termination "ChristopherYoo won by resignation"]

1. e4 {[%clk 0:03:00.9]} 1... c5 {[%clk 0:02:59.9]} 2. Nc3 {[%clk 0:03:01.2]}
2... Nc6 {[%clk 0:02:59.6]} 3. Bb5 {[%clk 0:03:00.7]} 3... Nd4 {[%clk
0:02:58.9]} 4. Bc4 {[%clk 0:03:01.3]} 4... e6 {[%clk 0:02:58.7]} 5. Nge2 {[%clk
0:03:01.6]} 5... Nf6 {[%clk 0:02:54]} 6. O-O {[%clk 0:03:01.5]} 6... b5 {[%clk
0:02:16.4]} 7. Nxb5 {[%clk 0:02:46.9]} 7... Nxb5 {[%clk 0:02:15.2]} 8. Bxb5
{[%clk 0:02:47.6]} 8... Nxe4 {[%clk 0:02:15.7]} 9. d4 {[%clk 0:02:47.3]} 9...
Bb7 {[%clk 0:02:09.2]} 10. Be3 {[%clk 0:02:44.5]} 10... Nd6 {[%clk 0:01:45.5]}
11. Ba4 {[%clk 0:02:42.1]} 11... Nf5 {[%clk 0:01:24.5]} 12. Bf4 {[%clk
0:02:24.4]} 12... Qa5 {[%clk 0:01:23.3]} 13. c3 {[%clk 0:02:13.4]} 13... cxd4
{[%clk 0:01:17.9]} 14. Nxd4 {[%clk 0:02:12.8]} 14... Qd5 {[%clk 0:01:13.2]} 15.
Nf3 {[%clk 0:02:13.3]} 15... Bd6 {[%clk 0:01:03.8]} 16. Bxd6 {[%clk 0:02:06]}
16... Nxd6 {[%clk 0:01:01.3]} 17. Qxd5 {[%clk 0:01:42.9]} 17... Bxd5 {[%clk
0:01:00.8]} 18. Rad1 {[%clk 0:01:42.8]} 18... Nc4 {[%clk 0:00:49.3]} 19. b3
{[%clk 0:01:30.5]} 19... Nb6 {[%clk 0:00:48.9]} 20. Bb5 {[%clk 0:01:28.1]} 20...
Bxf3 {[%clk 0:00:47.3]} 21. gxf3 {[%clk 0:01:29]} 21... a6 {[%clk 0:00:46.4]}
22. Be2 {[%clk 0:01:28.9]} 22... Nd5 {[%clk 0:00:45.8]} 23. c4 {[%clk
0:01:26.6]} 23... Nf4 {[%clk 0:00:45]} 24. Rfe1 {[%clk 0:01:27]} 24... Ke7
{[%clk 0:00:36.5]} 25. Rd4 {[%clk 0:01:26.6]} 25... g5 {[%clk 0:00:34.6]} 26.
Bf1 {[%clk 0:01:24.9]} 26... a5 {[%clk 0:00:28.4]} 27. Red1 {[%clk 0:01:23.9]}
27... Rhd8 {[%clk 0:00:27.7]} 28. Rd6 {[%clk 0:01:10.7]} 28... Nd5 {[%clk
0:00:24.8]} 29. R6xd5 {[%clk 0:01:10.7]} 29... exd5 {[%clk 0:00:22.4]} 30. Rxd5
{[%clk 0:01:11.6]} 30... f6 {[%clk 0:00:19.4]} 31. Bd3 {[%clk 0:01:12]} 31... h6
{[%clk 0:00:18]} 32. Be4 {[%clk 0:01:12.7]} 32... a4 {[%clk 0:00:16.4]} 33. b4
{[%clk 0:01:11.5]} 33... a3 {[%clk 0:00:15.9]} 34. Rd3 {[%clk 0:01:05.5]} 34...
Ra4 {[%clk 0:00:15.6]} 35. Rb3 {[%clk 0:00:52.9]} 35... Rb8 {[%clk 0:00:15.6]}
36. b5 {[%clk 0:00:51.5]} 36... Rxc4 {[%clk 0:00:15.2]} 37. b6 {[%clk
0:00:51.1]} 37... f5 {[%clk 0:00:10]} 38. Bxf5 {[%clk 0:00:47.5]} 38... d5
{[%clk 0:00:10]} 39. b7 {[%clk 0:00:45.9]} 39... Kd6 {[%clk 0:00:07.6]} 40. Bc8
{[%clk 0:00:44.5]} 40... d4 {[%clk 0:00:04]} 41. Rxa3 {[%clk 0:00:44.1]} 41...
Rc3 {[%clk 0:00:03.9]} 42. Ra6+ {[%clk 0:00:44.1]} 42... Kc7 {[%clk 0:00:04.3]}
43. Ra4 {[%clk 0:00:39.4]} 43... d3 {[%clk 0:00:03.9]} 44. Rd4 {[%clk
0:00:38.5]} 44... Rc1+ {[%clk 0:00:02.3]} 45. Kg2 {[%clk 0:00:37.6]} 45... Rd1
{[%clk 0:00:02.8]} 46. a4 {[%clk 0:00:34.1]} 46... Rxb7 {[%clk 0:00:03.2]} 47.
Bxb7 {[%clk 0:00:33.6]} 47... Kxb7 {[%clk 0:00:04.1]} 48. Rd6 {[%clk 0:00:33]}
48... Kc7 {[%clk 0:00:04]} 49. Rd4 {[%clk 0:00:28.9]} 49... Kc6 {[%clk
0:00:04.4]} 50. a5 {[%clk 0:00:26.5]} 50... Kb5 {[%clk 0:00:03.7]} 51. Rd5+
{[%clk 0:00:22.4]} 51... Kc4 {[%clk 0:00:03.7]} 52. Rd8 {[%clk 0:00:23.3]} 52...
Ra1 {[%clk 0:00:02.8]} 53. Rc8+ {[%clk 0:00:21.7]} 53... Kb3 {[%clk 0:00:03]}
54. Rb8+ {[%clk 0:00:21.8]} 54... Kc2 {[%clk 0:00:03.4]} 55. Rc8+ {[%clk
0:00:22.2]} 55... Kd1 {[%clk 0:00:04.1]} 56. Rd8 {[%clk 0:00:21.5]} 56... d2
{[%clk 0:00:04.4]} 57. Rd5 {[%clk 0:00:20.1]} 57... Kc2 {[%clk 0:00:04.4]} 58.
Rc5+ {[%clk 0:00:20]} 58... Kb3 {[%clk 0:00:04.7]} 59. Rd5 {[%clk 0:00:15.4]}
59... d1=Q {[%clk 0:00:04.9]} 60. Rxd1 {[%clk 0:00:15.9]} 60... Rxd1 {[%clk
0:00:05.5]} 61. Kg3 {[%clk 0:00:16.4]} 61... Ra1 {[%clk 0:00:05.4]} 62. Kg4
{[%clk 0:00:16.4]} 62... Rxa5 {[%clk 0:00:06]} 63. f4 {[%clk 0:00:17.1]} 63...
gxf4 {[%clk 0:00:05.9]} 64. Kxf4 {[%clk 0:00:17.4]} 64... Kc4 {[%clk 0:00:06.6]}
65. Kg4 {[%clk 0:00:18.3]} 65... Kd4 {[%clk 0:00:06.4]} 66. f4 {[%clk
0:00:19.2]} 66... Ke4 {[%clk 0:00:06.9]} 0-1

[Event "Early-Titled-Tuesday-Blitz-February-06-2024"]
[Site "Chess.com"]
[Date "2024.02.06"]
[Round "3"]
[White "NMJeevanK"]
[Black "gmcorrales"]
[Result "0-1"]
[WhiteElo "2582"]
[BlackElo "2864"]
[TimeControl "180+1"]
[EndTime "8:28:57 PST"]
[Termination "gmcorrales won by checkmate"]

1. e4 {[%clk 0:03:00.9]} 1... c5 {[%clk 0:01:10.3]} 2. Nc3 {[%clk 0:02:58.4]}
2... d6 {[%clk 0:01:10.4]} 3. f4 {[%clk 0:02:57.9]} 3... a6 {[%clk 0:01:10.1]}
4. Nf3 {[%clk 0:02:57]} 4... Nc6 {[%clk 0:01:10.2]} 5. d3 {[%clk 0:02:55.2]}
5... g6 {[%clk 0:01:09.4]} 6. Be3 {[%clk 0:02:55.2]} 6... Bg7 {[%clk 0:01:09.8]}
7. Qd2 {[%clk 0:02:55.6]} 7... Bg4 {[%clk 0:01:08.5]} 8. Be2 {[%clk 0:02:55.4]}
8... Qd7 {[%clk 0:01:07.3]} 9. O-O {[%clk 0:02:52.2]} 9... Nd4 {[%clk
0:01:07.4]} 10. Bxd4 {[%clk 0:02:46.2]} 10... cxd4 {[%clk 0:01:08.3]} 11. Nd1
{[%clk 0:02:43.6]} 11... Rc8 {[%clk 0:01:06.2]} 12. Nf2 {[%clk 0:02:41.4]} 12...
Bxf3 {[%clk 0:01:05.7]} 13. Bxf3 {[%clk 0:02:42.3]} 13... e6 {[%clk 0:01:06.2]}
14. Rac1 {[%clk 0:02:33.5]} 14... Ne7 {[%clk 0:01:06.3]} 15. g4 {[%clk 0:02:32]}
15... e5 {[%clk 0:01:05]} 16. f5 {[%clk 0:02:31.9]} 16... h5 {[%clk 0:01:04.9]}
17. gxh5 {[%clk 0:02:30.5]} 17... Bh6 {[%clk 0:01:05.2]} 18. Qe2 {[%clk
0:02:24.6]} 18... Bxc1 {[%clk 0:01:05.3]} 19. Rxc1 {[%clk 0:02:25.1]} 19... gxf5
{[%clk 0:01:05.6]} 20. exf5 {[%clk 0:02:24.6]} 20... Qxf5 {[%clk 0:00:59.8]} 21.
Kh1 {[%clk 0:02:19]} 21... Qf4 {[%clk 0:00:54.1]} 22. Rg1 {[%clk 0:02:15.4]}
22... Qe3 {[%clk 0:00:53]} 23. c4 {[%clk 0:02:07.2]} 23... Qxe2 {[%clk
0:00:51.9]} 24. Bxe2 {[%clk 0:02:08.1]} 24... b5 {[%clk 0:00:52.3]} 25. Ne4
{[%clk 0:02:05.6]} 25... Rd8 {[%clk 0:00:49.7]} 26. b3 {[%clk 0:01:46.1]} 26...
Kf8 {[%clk 0:00:46.7]} 27. Nf6 {[%clk 0:01:40.9]} 27... Nf5 {[%clk 0:00:43.7]}
28. Nd5 {[%clk 0:01:22.4]} 28... bxc4 {[%clk 0:00:37.5]} 29. bxc4 {[%clk
0:01:23.3]} 29... Rh6 {[%clk 0:00:36.4]} 30. a4 {[%clk 0:01:12.3]} 30... a5
{[%clk 0:00:33.3]} 31. Rb1 {[%clk 0:01:10.4]} 31... Ne7 {[%clk 0:00:29.6]} 32.
Nb6 {[%clk 0:01:04.1]} 32... d5 {[%clk 0:00:29.3]} 33. c5 {[%clk 0:01:04.2]}
33... Rc6 {[%clk 0:00:26.7]} 34. Rb5 {[%clk 0:01:03.8]} 34... e4 {[%clk
0:00:22.4]} 35. Rxa5 {[%clk 0:01:03.3]} 35... Nf5 {[%clk 0:00:15.9]} 36. Ra7
{[%clk 0:00:53.6]} 36... Ng7 {[%clk 0:00:15.5]} 37. h6 {[%clk 0:00:51.2]} 37...
Rxh6 {[%clk 0:00:14.8]} 38. a5 {[%clk 0:00:45.9]} 38... Rc6 {[%clk 0:00:14.2]}
39. a6 {[%clk 0:00:45.6]} 39... Ne6 {[%clk 0:00:14.1]} 40. Rb7 {[%clk
0:00:35.4]} 40... Nxc5 {[%clk 0:00:13.9]} 41. Nd7+ {[%clk 0:00:24.9]} 41... Rxd7
{[%clk 0:00:12.7]} 42. a7 {[%clk 0:00:25.4]} 42... Ra6 {[%clk 0:00:11.1]} 43.
Rb8+ {[%clk 0:00:25.4]} 43... Kg7 {[%clk 0:00:11]} 44. a8=Q {[%clk 0:00:24]}
44... Rxa8 {[%clk 0:00:11.9]} 45. Rxa8 {[%clk 0:00:24.6]} 45... exd3 {[%clk
0:00:11.8]} 46. Bg4 {[%clk 0:00:23.9]} 46... Rb7 {[%clk 0:00:11]} 47. Ra4 {[%clk
0:00:23.2]} 47... Nb3 {[%clk 0:00:08.3]} 48. Kg2 {[%clk 0:00:20.1]} 48... d2
{[%clk 0:00:08.7]} 49. Bd1 {[%clk 0:00:19.5]} 49... Kf6 {[%clk 0:00:07.4]} 50.
Kf2 {[%clk 0:00:19.6]} 50... Ke5 {[%clk 0:00:07.6]} 51. Ke2 {[%clk 0:00:19.9]}
51... f5 {[%clk 0:00:07.8]} 52. Ra8 {[%clk 0:00:19.7]} 52... Nc5 {[%clk
0:00:07.4]} 53. Kxd2 {[%clk 0:00:19.2]} 53... Kf4 {[%clk 0:00:07.3]} 54. Ra5
{[%clk 0:00:17.7]} 54... Rb2+ {[%clk 0:00:08]} 55. Ke1 {[%clk 0:00:17.6]} 55...
Nd3+ {[%clk 0:00:07.9]} 56. Kf1 {[%clk 0:00:18.1]} 56... Rf2+ {[%clk 0:00:08]}
57. Kg1 {[%clk 0:00:18.5]} 57... Rd2 {[%clk 0:00:08.9]} 58. Bh5 {[%clk
0:00:16.5]} 58... Ke4 {[%clk 0:00:09.4]} 59. Ra8 {[%clk 0:00:13.8]} 59... Ne5
{[%clk 0:00:09.9]} 60. Ra3 {[%clk 0:00:12.9]} 60... d3 {[%clk 0:00:10.4]} 61. h4
{[%clk 0:00:11.1]} 61... d4 {[%clk 0:00:10.9]} 62. Kf1 {[%clk 0:00:11.1]} 62...
Rc2 {[%clk 0:00:11.3]} 63. Ra5 {[%clk 0:00:10.5]} 63... Nc4 {[%clk 0:00:11.5]}
64. Ra7 {[%clk 0:00:10.1]} 64... Ne3+ {[%clk 0:00:12]} 65. Ke1 {[%clk
0:00:09.7]} 65... Kf4 {[%clk 0:00:12.9]} 66. Bd1 {[%clk 0:00:08.6]} 66... Rh2
{[%clk 0:00:12.3]} 67. Bb3 {[%clk 0:00:04.3]} 67... d2# {[%clk 0:00:12.6]} 0-1

[Event "Early-Titled-Tuesday-Blitz-February-06-2024"]
[Site "Chess.com"]
[Date "2024.02.06"]
[Round "3"]
[White "BestStelker"]
[Black "tptagain"]
[Result "1/2-1/2"]
[WhiteElo "2716"]
[BlackElo "2929"]
[TimeControl "180+1"]
[EndTime "8:28:58 PST"]
[Termination "Game drawn - insufficient material"]

1. c4 {[%clk 0:03:00.9]} 1... e5 {[%clk 0:02:58.7]} 2. Nc3 {[%clk 0:03:00.3]}
2... d6 {[%clk 0:02:57.3]} 3. g3 {[%clk 0:03:00.5]} 3... f5 {[%clk 0:02:57.1]}
4. Bg2 {[%clk 0:03:01.1]} 4... Nf6 {[%clk 0:02:54.9]} 5. d4 {[%clk 0:03:00.1]}
5... Be7 {[%clk 0:02:55.1]} 6. e3 {[%clk 0:02:43.6]} 6... O-O {[%clk 0:02:53.1]}
7. Nf3 {[%clk 0:02:44.3]} 7... e4 {[%clk 0:02:49.9]} 8. Nd2 {[%clk 0:02:44.7]}
8... c6 {[%clk 0:02:47.2]} 9. O-O {[%clk 0:02:40.1]} 9... d5 {[%clk 0:02:46.4]}
10. Qb3 {[%clk 0:02:39.6]} 10... Kh8 {[%clk 0:02:23.8]} 11. a4 {[%clk
0:02:28.7]} 11... Na6 {[%clk 0:02:20.5]} 12. a5 {[%clk 0:02:19.4]} 12... Nb4
{[%clk 0:02:13.3]} 13. Ra4 {[%clk 0:01:59.5]} 13... Nd3 {[%clk 0:02:10.9]} 14.
Ne2 {[%clk 0:01:51.5]} 14... g5 {[%clk 0:01:58.2]} 15. f3 {[%clk 0:01:46.1]}
15... Rb8 {[%clk 0:01:57.6]} 16. cxd5 {[%clk 0:01:42.6]} 16... cxd5 {[%clk
0:01:57.5]} 17. Nc3 {[%clk 0:01:19.6]} 17... Bd7 {[%clk 0:01:55.1]} 18. Ra1
{[%clk 0:01:19.2]} 18... Bc6 {[%clk 0:01:48.1]} 19. Rd1 {[%clk 0:00:52.9]} 19...
Qd7 {[%clk 0:01:33.9]} 20. Bf1 {[%clk 0:00:45.7]} 20... Nxc1 {[%clk 0:01:21.5]}
21. Raxc1 {[%clk 0:00:44.7]} 21... f4 {[%clk 0:01:20.3]} 22. fxe4 {[%clk
0:00:24.8]} 22... fxe3 {[%clk 0:01:18.6]} 23. Nf3 {[%clk 0:00:25.1]} 23... Nxe4
{[%clk 0:00:52.8]} 24. Ne5 {[%clk 0:00:25.3]} 24... Qf5 {[%clk 0:00:52.4]} 25.
Nxe4 {[%clk 0:00:25.6]} 25... dxe4 {[%clk 0:00:52.5]} 26. Qxe3 {[%clk
0:00:25.4]} 26... Bd5 {[%clk 0:00:47.5]} 27. Be2 {[%clk 0:00:21.1]} 27... Qe6
{[%clk 0:00:13.2]} 28. Bg4 {[%clk 0:00:21]} 28... Qa6 {[%clk 0:00:13]} 29. Nd7
{[%clk 0:00:19.1]} 29... Qxa5 {[%clk 0:00:13.1]} 30. Nxb8 {[%clk 0:00:18.6]}
30... Rxb8 {[%clk 0:00:13]} 31. Rf1 {[%clk 0:00:18]} 31... Qb6 {[%clk
0:00:10.3]} 32. Rf5 {[%clk 0:00:08.4]} 32... Rd8 {[%clk 0:00:10.4]} 33. Re5
{[%clk 0:00:07.2]} 33... Bf6 {[%clk 0:00:09.9]} 34. Rxd5 {[%clk 0:00:02.1]}
34... Rxd5 {[%clk 0:00:10.8]} 35. Qxe4 {[%clk 0:00:02.2]} 35... Qxd4+ {[%clk
0:00:06.4]} 36. Qxd4 {[%clk 0:00:02.4]} 36... Rxd4 {[%clk 0:00:04.7]} 37. Bf3
{[%clk 0:00:02.1]} 37... Rd7 {[%clk 0:00:03.1]} 38. Rc8+ {[%clk 0:00:02.3]}
38... Kg7 {[%clk 0:00:02.9]} 39. b3 {[%clk 0:00:03]} 39... b6 {[%clk 0:00:02.7]}
40. Ra8 {[%clk 0:00:03]} 40... Rd3 {[%clk 0:00:02.7]} 41. Be4 {[%clk 0:00:02.9]}
41... Rxb3 {[%clk 0:00:02.4]} 42. Rxa7+ {[%clk 0:00:03.6]} 42... Kf8 {[%clk
0:00:03]} 43. Rxh7 {[%clk 0:00:04.1]} 43... Rb1+ {[%clk 0:00:03.1]} 44. Kf2
{[%clk 0:00:04.1]} 44... Rb2+ {[%clk 0:00:03.5]} 45. Kf3 {[%clk 0:00:04.8]}
45... b5 {[%clk 0:00:03.3]} 46. Bd5 {[%clk 0:00:05.3]} 46... Bg7 {[%clk
0:00:03.8]} 47. Rh5 {[%clk 0:00:05.1]} 47... Bf6 {[%clk 0:00:04]} 48. Rh7 {[%clk
0:00:05.4]} 48... Bg7 {[%clk 0:00:04.4]} 49. Rh5 {[%clk 0:00:06.1]} 49... b4
{[%clk 0:00:04.9]} 50. Rxg5 {[%clk 0:00:06]} 50... Rxh2 {[%clk 0:00:05]} 51.
Rf5+ {[%clk 0:00:06.1]} 51... Ke8 {[%clk 0:00:05.7]} 52. Rf7 {[%clk 0:00:05.9]}
52... Bc3 {[%clk 0:00:05.7]} 53. Rb7 {[%clk 0:00:06.5]} 53... Rd2 {[%clk
0:00:05.3]} 54. Ke4 {[%clk 0:00:06.6]} 54... Rd4+ {[%clk 0:00:05]} 55. Ke5
{[%clk 0:00:06.1]} 55... Rd3+ {[%clk 0:00:05.6]} 56. Ke6 {[%clk 0:00:06.2]}
56... Re3+ {[%clk 0:00:06.3]} 57. Kd6 {[%clk 0:00:06.7]} 57... Be5+ {[%clk
0:00:05.3]} 58. Kc5 {[%clk 0:00:05]} 58... Rxg3 {[%clk 0:00:04.3]} 59. Rxb4
{[%clk 0:00:04.2]} 59... Ke7 {[%clk 0:00:04.3]} 60. Rb7+ {[%clk 0:00:04.3]}
60... Kf6 {[%clk 0:00:04.6]} 61. Rf7+ {[%clk 0:00:04.1]} 61... Kg5 {[%clk
0:00:05.2]} 62. Rf3 {[%clk 0:00:04.8]} 62... Rxf3 {[%clk 0:00:05]} 63. Bxf3
{[%clk 0:00:05.7]} 1/2-1/2

[Event "Early-Titled-Tuesday-Blitz-February-06-2024"]
[Site "Chess.com"]
[Date "2024.02.06"]
[Round "3"]
[White "Paladin61"]
[Black "mbojan"]
[Result "0-1"]
[WhiteElo "2676"]
[BlackElo "2878"]
[TimeControl "180+1"]
[EndTime "8:29:01 PST"]
[Termination "mbojan won on time"]

1. e4 {[%clk 0:02:59.1]} 1... c5 {[%clk 0:02:58.3]} 2. Nf3 {[%clk 0:02:56.1]}
2... e6 {[%clk 0:02:58.5]} 3. g3 {[%clk 0:02:55.9]} 3... d5 {[%clk 0:02:58.1]}
4. exd5 {[%clk 0:02:55.9]} 4... exd5 {[%clk 0:02:59]} 5. d4 {[%clk 0:02:56.3]}
5... Nc6 {[%clk 0:02:57.4]} 6. Bg2 {[%clk 0:02:56.3]} 6... Nf6 {[%clk
0:02:56.8]} 7. O-O {[%clk 0:02:55.5]} 7... cxd4 {[%clk 0:02:57]} 8. Nxd4 {[%clk
0:02:55.5]} 8... Be7 {[%clk 0:02:55.7]} 9. Nc3 {[%clk 0:02:49.8]} 9... Bg4
{[%clk 0:02:51.7]} 10. Qd3 {[%clk 0:02:42.6]} 10... O-O {[%clk 0:02:51.4]} 11.
Bf4 {[%clk 0:02:27.7]} 11... Re8 {[%clk 0:02:26.5]} 12. a3 {[%clk 0:02:18.5]}
12... a6 {[%clk 0:02:14.8]} 13. Nf5 {[%clk 0:02:08.8]} 13... Bc5 {[%clk
0:02:10.7]} 14. h3 {[%clk 0:01:39.4]} 14... Bxf5 {[%clk 0:01:35.5]} 15. Qxf5
{[%clk 0:01:39.2]} 15... Nd4 {[%clk 0:01:36]} 16. Qd3 {[%clk 0:01:38.5]} 16...
Ne6 {[%clk 0:01:36.5]} 17. Be5 {[%clk 0:01:33.3]} 17... Ng5 {[%clk 0:01:25.4]}
18. Bd4 {[%clk 0:01:02.5]} 18... Bxd4 {[%clk 0:01:21.7]} 19. Qxd4 {[%clk
0:01:03.4]} 19... Ne6 {[%clk 0:01:22.5]} 20. Qd2 {[%clk 0:00:56.9]} 20... d4
{[%clk 0:01:22.6]} 21. Ne2 {[%clk 0:00:52.8]} 21... Qd7 {[%clk 0:01:23.1]} 22.
Rad1 {[%clk 0:00:51.6]} 22... Rad8 {[%clk 0:01:23.8]} 23. Rfe1 {[%clk
0:00:51.4]} 23... h5 {[%clk 0:01:23.3]} 24. Nf4 {[%clk 0:00:43]} 24... h4 {[%clk
0:00:51]} 25. Nxe6 {[%clk 0:00:42.8]} 25... Rxe6 {[%clk 0:00:51.9]} 26. Rxe6
{[%clk 0:00:42.9]} 26... Qxe6 {[%clk 0:00:52.8]} 27. Re1 {[%clk 0:00:39.4]}
27... Qd6 {[%clk 0:00:49.2]} 28. Qg5 {[%clk 0:00:29.6]} 28... hxg3 {[%clk
0:00:48.4]} 29. fxg3 {[%clk 0:00:30.5]} 29... d3 {[%clk 0:00:44.2]} 30. cxd3
{[%clk 0:00:29.8]} 30... Qd4+ {[%clk 0:00:41]} 31. Kh2 {[%clk 0:00:23]} 31...
Qxb2 {[%clk 0:00:41.1]} 32. Rf1 {[%clk 0:00:16.1]} 32... Rxd3 {[%clk 0:00:40.4]}
33. Qf5 {[%clk 0:00:11.4]} 33... Rd2 {[%clk 0:00:38.6]} 34. Qc8+ {[%clk
0:00:11.5]} 34... Kh7 {[%clk 0:00:39.2]} 35. Qf5+ {[%clk 0:00:12]} 35... g6
{[%clk 0:00:39.9]} 36. Qf3 {[%clk 0:00:11.3]} 36... Kg7 {[%clk 0:00:27.8]} 37.
Kh1 {[%clk 0:00:11.6]} 37... b5 {[%clk 0:00:27.4]} 38. g4 {[%clk 0:00:11.1]}
38... Rd7 {[%clk 0:00:26.5]} 39. g5 {[%clk 0:00:10.4]} 39... Nh5 {[%clk
0:00:26.8]} 40. h4 {[%clk 0:00:09.3]} 40... Qe5 {[%clk 0:00:26.8]} 41. Kg1
{[%clk 0:00:09]} 41... Qc5+ {[%clk 0:00:26.3]} 42. Kh2 {[%clk 0:00:09]} 42...
Qe5+ {[%clk 0:00:26.7]} 43. Kg1 {[%clk 0:00:08.4]} 43... Re7 {[%clk 0:00:27.5]}
44. Rd1 {[%clk 0:00:04.6]} 44... Qc5+ {[%clk 0:00:27.5]} 45. Kh2 {[%clk
0:00:04.7]} 45... Re3 {[%clk 0:00:25.2]} 46. Qb7 {[%clk 0:00:03.4]} 46... Qe5+
{[%clk 0:00:25]} 47. Kg1 {[%clk 0:00:03.4]} 47... Re1+ {[%clk 0:00:25]} 48. Rxe1
{[%clk 0:00:02]} 48... Qxe1+ {[%clk 0:00:25.9]} 49. Kh2 {[%clk 0:00:01.7]} 49...
Qxh4+ {[%clk 0:00:26.1]} 50. Kg1 {[%clk 0:00:02.6]} 50... Qe1+ {[%clk
0:00:26.2]} 51. Kh2 {[%clk 0:00:02.8]} 51... Qe5+ {[%clk 0:00:25.8]} 52. Kg1
{[%clk 0:00:02.9]} 52... Nf4 {[%clk 0:00:25.6]} 53. Be4 {[%clk 0:00:02.6]} 53...
Qxg5+ {[%clk 0:00:25.7]} 54. Kf2 {[%clk 0:00:02.6]} 54... Qe5 {[%clk 0:00:24.6]}
55. Kf3 {[%clk 0:00:02.7]} 55... Ne6 {[%clk 0:00:24.6]} 56. Bd5 {[%clk
0:00:02.2]} 56... Nd4+ {[%clk 0:00:23.5]} 57. Kf2 {[%clk 0:00:02.7]} 57... Qf4+
{[%clk 0:00:23]} 58. Kg2 {[%clk 0:00:03.3]} 58... a5 {[%clk 0:00:20.4]} 59. Qd7
{[%clk 0:00:02.5]} 59... b4 {[%clk 0:00:20.2]} 60. axb4 {[%clk 0:00:02.6]} 60...
axb4 {[%clk 0:00:21.1]} 61. Kh3 {[%clk 0:00:02.2]} 61... Qh6+ {[%clk 0:00:21.3]}
62. Kg4 {[%clk 0:00:02]} 62... Qh5+ {[%clk 0:00:21.9]} 63. Kg3 {[%clk
0:00:02.3]} 63... Qg5+ {[%clk 0:00:22.2]} 64. Kf2 {[%clk 0:00:02.8]} 64... Qf5+
{[%clk 0:00:22.6]} 65. Kg2 {[%clk 0:00:03.7]} 65... Qxd7 {[%clk 0:00:22.7]} 0-1